[Event "Titled Tuesday Blitz June 13 Late 2023"]
[White "Perske, Thore"]
[Black "Van Foreest, Jorden"]
[WhiteFideId "12902195"]
[BlackFideId "1039784"]
[WhiteElo "2336"]
[BlackElo "2633"]
[Result "0-1"]
[Round "1"]
[TimeControl "180+2"]
[Date "2023.06.13"]
[WhiteClock "0:01:09"]
[BlackClock "0:02:21"]
[Board "19"]

1. d4 {[%clk 0:02:59]}  Nf6 {[%clk 0:02:59]} 2. g3 {[%clk 0:03:00]}  g6 {[%clk 0:02:58]} 3. Bg2 {[%clk 0:03:00]}  Bg7 {[%clk 0:02:58]} 4. e4 {[%clk 0:03:01]}  d6 {[%clk 0:02:58]} 5. Ne2 {[%clk 0:03:01]}  O-O {[%clk 0:02:59]} 6. Nbc3 {[%clk 0:03:01]}  Nbd7 {[%clk 0:02:58]} 7. O-O {[%clk 0:03:01]}  e5 {[%clk 0:02:58]} 8. Re1 {[%clk 0:03:01]}  b6 {[%clk 0:02:59]} 9. h3 {[%clk 0:02:58]}  Bb7 {[%clk 0:02:58]} 10. d5 {[%clk 0:02:58]}  a6 {[%clk 0:02:54]} 11. a4 {[%clk 0:02:57]}  h6 {[%clk 0:02:53]} 12. Be3 {[%clk 0:02:57]}  a5 {[%clk 0:02:48]} 13. Nb5 {[%clk 0:02:56]}  Nc5 {[%clk 0:02:48]} 14. Bxc5 {[%clk 0:02:51]}  bxc5 {[%clk 0:02:47]} 15. c4 {[%clk 0:02:51]}  Nd7 {[%clk 0:02:45]} 16. Qd2 {[%clk 0:02:47]}  f5 {[%clk 0:02:42]} 17. Nec3 {[%clk 0:02:38]}  f4 {[%clk 0:02:34]} 18. g4 {[%clk 0:02:39]}  f3 {[%clk 0:02:32]} 19. Bh1 {[%clk 0:02:34]}  Qh4 {[%clk 0:02:30]} 20. Kh2 {[%clk 0:02:29]}  Nf6 {[%clk 0:02:30]} 21. Rg1 {[%clk 0:02:27]}  Nh7 {[%clk 0:02:30]} 22. Rg3 {[%clk 0:02:24]}  Rf7 {[%clk 0:02:27]} 23. Rxf3 {[%clk 0:02:13]}  Ng5 {[%clk 0:02:23]} 24. Rg3 {[%clk 0:02:08]}  Raf8 {[%clk 0:02:23]} 25. f3 {[%clk 0:02:08]}  Nxf3+ {[%clk 0:02:20]} 26. Bxf3 {[%clk 0:01:09]}  Rxf3 {[%clk 0:02:21]} 0-1


[Site "https://www.chess.com"]

[Event "Titled Tuesday Blitz June 13 Late 2023"]
[White "Eljanov, Pavel"]
[Black "Bas Mas, Jose Joaquin"]
[WhiteFideId "14102951"]
[BlackFideId "22219064"]
[WhiteElo "2598"]
[BlackElo "2212"]
[Result "1-0"]
[Round "1"]
[TimeControl "180+2"]
[Date "2023.06.13"]
[WhiteClock "0:00:15"]
[BlackClock "0:00:00"]
[Board "20"]

1. d4 {[%clk 0:03:00]}  d5 {[%clk 0:02:59]} 2. c4 {[%clk 0:02:59]}  e6 {[%clk 0:02:59]} 3. Nc3 {[%clk 0:02:59]}  Nf6 {[%clk 0:02:59]} 4. cxd5 {[%clk 0:02:59]}  exd5 {[%clk 0:02:59]} 5. Bg5 {[%clk 0:02:59]}  Nbd7 {[%clk 0:02:58]} 6. e3 {[%clk 0:02:58]}  h6 {[%clk 0:02:58]} 7. Bh4 {[%clk 0:02:57]}  Be7 {[%clk 0:02:59]} 8. Bd3 {[%clk 0:02:54]}  O-O {[%clk 0:03:00]} 9. h3 {[%clk 0:02:49]}  b6 {[%clk 0:03:00]} 10. Nf3 {[%clk 0:02:40]}  Bb7 {[%clk 0:02:59]} 11. O-O {[%clk 0:02:28]}  c5 {[%clk 0:02:59]} 12. Rc1 {[%clk 0:02:22]}  a6 {[%clk 0:02:42]} 13. a3 {[%clk 0:02:06]}  Re8 {[%clk 0:02:33]} 14. Bb1 {[%clk 0:02:02]}  Rc8 {[%clk 0:01:57]} 15. Re1 {[%clk 0:01:26]}  Ne4 {[%clk 0:01:53]} 16. Bxe7 {[%clk 0:01:25]}  Qxe7 {[%clk 0:01:51]} 17. dxc5 {[%clk 0:01:25]}  Nxc3 {[%clk 0:01:50]} 18. Rxc3 {[%clk 0:01:24]}  Nxc5 {[%clk 0:01:40]} 19. Nd4 {[%clk 0:01:23]}  Qf6 {[%clk 0:01:29]} 20. Qg4 {[%clk 0:01:12]}  Ne4 {[%clk 0:01:10]} 21. Bxe4 {[%clk 0:01:01]}  Rxc3 {[%clk 0:00:56]} 22. bxc3 {[%clk 0:01:00]}  Rxe4 {[%clk 0:00:49]} 23. Qg3 {[%clk 0:00:53]}  Re8 {[%clk 0:00:30]} 24. Qc7 {[%clk 0:00:43]}  Bc8 {[%clk 0:00:27]} 25. a4 {[%clk 0:00:34]}  g6 {[%clk 0:00:18]} 26. Rb1 {[%clk 0:00:32]}  b5 {[%clk 0:00:15]} 27. axb5 {[%clk 0:00:32]}  axb5 {[%clk 0:00:16]} 28. Rxb5 {[%clk 0:00:31]}  Be6 {[%clk 0:00:13]} 29. Rb8 {[%clk 0:00:30]}  Rxb8 {[%clk 0:00:13]} 30. Qxb8+ {[%clk 0:00:31]}  Kg7 {[%clk 0:00:13]} 31. Qd6 {[%clk 0:00:30]}  h5 {[%clk 0:00:07]} 32. f4 {[%clk 0:00:29]}  h4 {[%clk 0:00:05]} 33. Kf2 {[%clk 0:00:28]}  g5 {[%clk 0:00:05]} 34. Kf3 {[%clk 0:00:26]}  gxf4 {[%clk 0:00:05]} 35. Qxf4 {[%clk 0:00:25]}  Qg6 {[%clk 0:00:05]} 36. Qxh4 {[%clk 0:00:21]}  Qd3 {[%clk 0:00:05]} 37. Qe1 {[%clk 0:00:15]}  Qe4+ {[%clk 0:00:04]} 38. Kf2 {[%clk 0:00:16]}  Bd7 {[%clk 0:00:03]} 39. Kg1 {[%clk 0:00:16]}  Qe5 {[%clk 0:00:03]} 40. Qf2 {[%clk 0:00:15]}  Kf8 {[%clk 0:00:00]} 41. Qf4 {[%clk 0:00:15]} 1-0


[Site "https://www.chess.com"]

[Event "Titled Tuesday Blitz June 13 Late 2023"]
[White "Kramnik, Vladimir"]
[Black "Ribeiro, Matheus Mendes Domingues"]
[WhiteFideId "4101588"]
[BlackFideId "324226923"]
[WhiteElo "2703"]
[BlackElo "2142"]
[Result "1/2-1/2"]
[Round "1"]
[TimeControl "180+2"]
[Date "2023.06.13"]
[WhiteClock "0:00:04"]
[BlackClock "0:00:06"]
[Board "24"]

1. c4 {[%clk 0:02:59]}  e6 {[%clk 0:03:00]} 2. Nc3 {[%clk 0:02:58]}  d5 {[%clk 0:03:00]} 3. d4 {[%clk 0:02:58]}  Nf6 {[%clk 0:03:01]} 4. cxd5 {[%clk 0:02:57]}  exd5 {[%clk 0:03:00]} 5. Bg5 {[%clk 0:02:57]}  Be6 {[%clk 0:02:56]} 6. e3 {[%clk 0:02:56]}  c6 {[%clk 0:02:53]} 7. Bd3 {[%clk 0:02:56]}  Nbd7 {[%clk 0:02:50]} 8. Nge2 {[%clk 0:02:53]}  h6 {[%clk 0:02:43]} 9. Bh4 {[%clk 0:02:52]}  g5 {[%clk 0:02:41]} 10. Bg3 {[%clk 0:02:51]}  Nh5 {[%clk 0:02:41]} 11. Qc2 {[%clk 0:02:50]}  Nxg3 {[%clk 0:02:38]} 12. Nxg3 {[%clk 0:02:50]}  h5 {[%clk 0:02:38]} 13. O-O-O {[%clk 0:02:46]}  Qa5 {[%clk 0:02:23]} 14. Kb1 {[%clk 0:02:43]}  O-O-O {[%clk 0:02:20]} 15. h4 {[%clk 0:02:41]}  g4 {[%clk 0:02:12]} 16. Nge2 {[%clk 0:02:38]}  Kb8 {[%clk 0:02:11]} 17. a3 {[%clk 0:02:35]}  Rc8 {[%clk 0:02:04]} 18. Nf4 {[%clk 0:02:32]}  c5 {[%clk 0:01:28]} 19. Qa4 {[%clk 0:02:08]}  Qxa4 {[%clk 0:00:57]} 20. Nxa4 {[%clk 0:02:09]}  cxd4 {[%clk 0:00:51]} 21. exd4 {[%clk 0:02:09]}  Bd6 {[%clk 0:00:35]} 22. g3 {[%clk 0:02:09]}  Nf6 {[%clk 0:00:32]} 23. Nxe6 {[%clk 0:01:57]}  fxe6 {[%clk 0:00:32]} 24. Rhe1 {[%clk 0:01:57]}  Rce8 {[%clk 0:00:27]} 25. Nc3 {[%clk 0:01:55]}  Rhf8 {[%clk 0:00:26]} 26. Re2 {[%clk 0:01:52]}  e5 {[%clk 0:00:24]} 27. Nb5 {[%clk 0:01:49]}  e4 {[%clk 0:00:14]} 28. Nxd6 {[%clk 0:01:37]}  exd3 {[%clk 0:00:14]} 29. Rxe8+ {[%clk 0:01:31]}  Nxe8 {[%clk 0:00:13]} 30. Nxe8 {[%clk 0:01:32]}  Rxe8 {[%clk 0:00:14]} 31. Rxd3 {[%clk 0:01:31]}  Re2 {[%clk 0:00:11]} 32. f3 {[%clk 0:01:31]}  Re1+ {[%clk 0:00:07]} 33. Kc2 {[%clk 0:01:30]}  gxf3 {[%clk 0:00:08]} 34. Rxf3 {[%clk 0:01:29]}  Rg1 {[%clk 0:00:06]} 35. Rc3 {[%clk 0:01:01]}  b6 {[%clk 0:00:04]} 36. b4 {[%clk 0:00:58]}  Kb7 {[%clk 0:00:04]} 37. b5 {[%clk 0:00:52]}  Rg2+ {[%clk 0:00:04]} 38. Kb3 {[%clk 0:00:51]}  Rd2 {[%clk 0:00:05]} 39. Rf3 {[%clk 0:00:46]}  Rxd4 {[%clk 0:00:05]} 40. Rf7+ {[%clk 0:00:45]}  Kb8 {[%clk 0:00:06]} 41. Rg7 {[%clk 0:00:45]}  Rd3+ {[%clk 0:00:05]} 42. Kb4 {[%clk 0:00:45]}  Rf3 {[%clk 0:00:05]} 43. a4 {[%clk 0:00:41]}  Re3 {[%clk 0:00:04]} 44. Rg5 {[%clk 0:00:39]}  d4 {[%clk 0:00:02]} 45. Kc4 {[%clk 0:00:36]}  d3 {[%clk 0:00:03]} 46. Kc3 {[%clk 0:00:36]}  Rf3 {[%clk 0:00:03]} 47. Rg7 {[%clk 0:00:26]}  Ka8 {[%clk 0:00:01]} 48. Rd7 {[%clk 0:00:20]}  Rxg3 {[%clk 0:00:01]} 49. Rxd3 {[%clk 0:00:20]}  Rg4 {[%clk 0:00:02]} 50. Rd4 {[%clk 0:00:20]}  Rg3+ {[%clk 0:00:02]} 51. Kc4 {[%clk 0:00:20]}  Rh3 {[%clk 0:00:03]} 52. Kd5 {[%clk 0:00:20]}  Kb7 {[%clk 0:00:03]} 53. Ke5 {[%clk 0:00:19]}  Rg3 {[%clk 0:00:04]} 54. Kd6 {[%clk 0:00:18]}  Rg4 {[%clk 0:00:03]} 55. Ke5 {[%clk 0:00:18]}  Rg8 {[%clk 0:00:03]} 56. Rd7+ {[%clk 0:00:17]}  Kb8 {[%clk 0:00:03]} 57. Rh7 {[%clk 0:00:17]}  Rg4 {[%clk 0:00:03]} 58. Rxh5 {[%clk 0:00:17]}  Rxa4 {[%clk 0:00:04]} 59. Rh8+ {[%clk 0:00:15]}  Kb7 {[%clk 0:00:04]} 60. Rh7+ {[%clk 0:00:15]}  Kb8 {[%clk 0:00:05]} 61. Kd5 {[%clk 0:00:14]}  Rb4 {[%clk 0:00:04]} 62. Kc6 {[%clk 0:00:13]}  Rc4+ {[%clk 0:00:05]} 63. Kd6 {[%clk 0:00:13]}  Rc5 {[%clk 0:00:04]} 64. Rh8+ {[%clk 0:00:13]}  Kb7 {[%clk 0:00:05]} 65. Rh7+ {[%clk 0:00:14]}  Kb8 {[%clk 0:00:05]} 66. Rh8+ {[%clk 0:00:05]}  Kb7 {[%clk 0:00:06]} 67. Rh7+ {[%clk 0:00:04]}  Kb8 {[%clk 0:00:06]} 1/2-1/2


[Site "https://www.chess.com"]

[Event "Titled Tuesday Blitz June 13 Late 2023"]
[White "Girsh, Daniel"]
[Black "Mikaelyan, Arman"]
[WhiteFideId "30949190"]
[BlackFideId "13304852"]
[WhiteElo "2075"]
[BlackElo "2456"]
[Result "0-1"]
[Round "1"]
[TimeControl "180+2"]
[Date "2023.06.13"]
[WhiteClock "0:00:02"]
[BlackClock "0:00:10"]
[Board "25"]

1. d4 {[%clk 0:02:44]}  b6 {[%clk 0:02:53]} 2. c4 {[%clk 0:02:45]}  Bb7 {[%clk 0:02:53]} 3. Nc3 {[%clk 0:02:45]}  e6 {[%clk 0:02:53]} 4. e4 {[%clk 0:02:44]}  Bb4 {[%clk 0:02:53]} 5. Bd3 {[%clk 0:02:45]}  Nf6 {[%clk 0:02:52]} 6. Qe2 {[%clk 0:02:42]}  O-O {[%clk 0:02:49]} 7. Nf3 {[%clk 0:02:43]}  c5 {[%clk 0:02:39]} 8. O-O {[%clk 0:02:40]}  cxd4 {[%clk 0:02:37]} 9. Nxd4 {[%clk 0:02:40]}  Bxc3 {[%clk 0:02:33]} 10. bxc3 {[%clk 0:02:40]}  d6 {[%clk 0:02:33]} 11. Ba3 {[%clk 0:02:28]}  a6 {[%clk 0:02:18]} 12. Rad1 {[%clk 0:02:28]}  Re8 {[%clk 0:02:14]} 13. f4 {[%clk 0:02:22]}  e5 {[%clk 0:01:47]} 14. Nf5 {[%clk 0:02:21]}  Re6 {[%clk 0:01:37]} 15. Nxd6 {[%clk 0:02:15]}  Bc6 {[%clk 0:01:13]} 16. Nf5 {[%clk 0:02:03]}  Nbd7 {[%clk 0:01:11]} 17. Qf3 {[%clk 0:01:41]}  Nc5 {[%clk 0:01:02]} 18. Bc2 {[%clk 0:01:40]}  Qc7 {[%clk 0:01:01]} 19. Qg3 {[%clk 0:01:32]}  g6 {[%clk 0:00:55]} 20. fxe5 {[%clk 0:01:30]}  Nfxe4 {[%clk 0:00:55]} 21. Bxe4 {[%clk 0:01:15]}  Nxe4 {[%clk 0:00:56]} 22. Nh6+ {[%clk 0:01:08]}  Kg7 {[%clk 0:00:55]} 23. Qf4 {[%clk 0:00:45]}  Qxe5 {[%clk 0:00:52]} 24. Qxf7+ {[%clk 0:00:41]}  Kxh6 {[%clk 0:00:52]} 25. Bc1+ {[%clk 0:00:41]}  g5 {[%clk 0:00:49]} 26. Rd3 {[%clk 0:00:15]}  Qc5+ {[%clk 0:00:42]} 27. Be3 {[%clk 0:00:15]}  Qe7 {[%clk 0:00:40]} 28. Qf5 {[%clk 0:00:15]}  Re5 {[%clk 0:00:36]} 29. Qh3+ {[%clk 0:00:14]}  Kg6 {[%clk 0:00:36]} 30. Bxb6 {[%clk 0:00:12]}  Rf8 {[%clk 0:00:34]} 31. Rxf8 {[%clk 0:00:09]}  Qxf8 {[%clk 0:00:34]} 32. Rf3 {[%clk 0:00:10]}  Qb8 {[%clk 0:00:27]} 33. Bd4 {[%clk 0:00:10]}  Nf6 {[%clk 0:00:22]} 34. Rxf6+ {[%clk 0:00:09]}  Kxf6 {[%clk 0:00:22]} 35. Qh6+ {[%clk 0:00:09]}  Kf5 {[%clk 0:00:21]} 36. Qxh7+ {[%clk 0:00:10]}  Kf4 {[%clk 0:00:18]} 37. g3+ {[%clk 0:00:10]}  Kg4 {[%clk 0:00:15]} 38. Bxe5 {[%clk 0:00:08]}  Qxe5 {[%clk 0:00:16]} 39. h3+ {[%clk 0:00:06]}  Kxg3 {[%clk 0:00:15]} 40. Qd3+ {[%clk 0:00:07]}  Bf3 {[%clk 0:00:15]} 41. Qd2 {[%clk 0:00:06]}  Qc5+ {[%clk 0:00:14]} 42. Kf1 {[%clk 0:00:05]}  Kxh3 {[%clk 0:00:14]} 43. Qd7+ {[%clk 0:00:05]}  g4 {[%clk 0:00:12]} 44. Qh7+ {[%clk 0:00:05]}  Kg3 {[%clk 0:00:13]} 45. Qc2 {[%clk 0:00:05]}  Qe3 {[%clk 0:00:11]} 46. Qb2 {[%clk 0:00:02]}  Qd3+ {[%clk 0:00:10]} 47. Kg1 {[%clk 0:00:02]}  Qd1# {[%clk 0:00:10]} 0-1


[Site "https://www.chess.com"]

[Event "Titled Tuesday Blitz June 13 Late 2023"]
[White "Hnydiuk, Aleksander"]
[Black "Bortnyk, Olexandr"]
[WhiteFideId "1109057"]
[BlackFideId "14120828"]
[WhiteElo "2374"]
[BlackElo "2733"]
[Result "0-1"]
[Round "1"]
[TimeControl "180+2"]
[Date "2023.06.13"]
[WhiteClock "0:00:00"]
[BlackClock "0:00:57"]
[Board "27"]

1. d4 {[%clk 0:02:56]}  d6 {[%clk 0:02:43]} 2. e4 {[%clk 0:02:55]}  Nf6 {[%clk 0:02:43]} 3. Nc3 {[%clk 0:02:55]}  Nbd7 {[%clk 0:02:43]} 4. f4 {[%clk 0:02:53]}  e5 {[%clk 0:02:42]} 5. Nf3 {[%clk 0:02:54]}  exd4 {[%clk 0:02:43]} 6. Qxd4 {[%clk 0:02:53]}  c6 {[%clk 0:02:43]} 7. Be3 {[%clk 0:02:52]}  d5 {[%clk 0:02:43]} 8. e5 {[%clk 0:02:45]}  Bc5 {[%clk 0:02:43]} 9. Qd2 {[%clk 0:02:38]}  Bxe3 {[%clk 0:02:42]} 10. Qxe3 {[%clk 0:02:38]}  Ng4 {[%clk 0:02:43]} 11. Qd2 {[%clk 0:02:35]}  Qb6 {[%clk 0:02:43]} 12. O-O-O {[%clk 0:02:22]}  Nc5 {[%clk 0:02:36]} 13. Kb1 {[%clk 0:02:15]}  h5 {[%clk 0:02:08]} 14. h3 {[%clk 0:02:13]}  Nh6 {[%clk 0:02:08]} 15. Be2 {[%clk 0:02:00]}  Bf5 {[%clk 0:02:01]} 16. Nd4 {[%clk 0:01:58]}  h4 {[%clk 0:01:58]} 17. Rhg1 {[%clk 0:01:35]}  Ne4 {[%clk 0:01:53]} 18. Nxe4 {[%clk 0:01:33]}  Bxe4 {[%clk 0:01:54]} 19. Bf3 {[%clk 0:01:18]}  O-O-O {[%clk 0:01:51]} 20. Bxe4 {[%clk 0:01:09]}  dxe4 {[%clk 0:01:52]} 21. Qe3 {[%clk 0:01:06]}  Rd5 {[%clk 0:01:47]} 22. c3 {[%clk 0:00:59]}  Rhd8 {[%clk 0:01:45]} 23. Rde1 {[%clk 0:00:46]}  c5 {[%clk 0:01:37]} 24. Nb3 {[%clk 0:00:46]}  Qg6 {[%clk 0:01:35]} 25. Kc1 {[%clk 0:00:39]}  b6 {[%clk 0:01:28]} 26. Re2 {[%clk 0:00:37]}  Nf5 {[%clk 0:01:25]} 27. Qf2 {[%clk 0:00:20]}  Ng3 {[%clk 0:01:15]} 28. Re3 {[%clk 0:00:16]}  Qh5 {[%clk 0:01:13]} 29. Ree1 {[%clk 0:00:09]}  Rd3 {[%clk 0:01:10]} 30. a3 {[%clk 0:00:07]}  Qf5 {[%clk 0:01:07]} 31. Kb1 {[%clk 0:00:04]}  e3 {[%clk 0:01:07]} 32. Qc2 {[%clk 0:00:02]}  Qxf4 {[%clk 0:00:57]} 33. Ka2 {[%clk 0:00:00]}  Qxe5 {[%clk 0:00:57]} 0-1


[Site "https://www.chess.com"]

[Event "Titled Tuesday Blitz June 13 Late 2023"]
[White "Swiercz, Dariusz"]
[Black "Ai, Evan"]
[WhiteFideId "1126881"]
[BlackFideId "2094770"]
[WhiteElo "2620"]
[BlackElo "1963"]
[Result "1-0"]
[Round "1"]
[TimeControl "180+2"]
[Date "2023.06.13"]
[WhiteClock "0:00:11"]
[BlackClock "0:00:11"]
[Board "28"]

1. e4 {[%clk 0:02:59]}  e5 {[%clk 0:02:55]} 2. Nf3 {[%clk 0:02:59]}  Nc6 {[%clk 0:02:51]} 3. Bb5 {[%clk 0:02:59]}  a6 {[%clk 0:02:49]} 4. Ba4 {[%clk 0:03:00]}  Nf6 {[%clk 0:02:48]} 5. d3 {[%clk 0:02:59]}  Bc5 {[%clk 0:02:45]} 6. Bxc6 {[%clk 0:02:56]}  dxc6 {[%clk 0:02:46]} 7. Nbd2 {[%clk 0:02:56]}  Qe7 {[%clk 0:02:43]} 8. Qe2 {[%clk 0:02:51]}  Bg4 {[%clk 0:02:40]} 9. h3 {[%clk 0:02:50]}  Bxf3 {[%clk 0:02:39]} 10. Nxf3 {[%clk 0:02:49]}  h6 {[%clk 0:02:38]} 11. a3 {[%clk 0:02:45]}  Nd7 {[%clk 0:02:36]} 12. b4 {[%clk 0:02:38]}  Bd6 {[%clk 0:02:35]} 13. Bb2 {[%clk 0:02:33]}  a5 {[%clk 0:02:34]} 14. c3 {[%clk 0:02:31]}  axb4 {[%clk 0:02:34]} 15. axb4 {[%clk 0:02:29]}  Rxa1+ {[%clk 0:02:32]} 16. Bxa1 {[%clk 0:02:30]}  O-O {[%clk 0:02:31]} 17. O-O {[%clk 0:02:31]}  b5 {[%clk 0:02:25]} 18. Qa2 {[%clk 0:02:24]}  Nb6 {[%clk 0:02:24]} 19. Qb3 {[%clk 0:02:19]}  Ra8 {[%clk 0:02:20]} 20. Bb2 {[%clk 0:02:19]}  Na4 {[%clk 0:02:05]} 21. Bc1 {[%clk 0:02:16]}  Rb8 {[%clk 0:01:56]} 22. Be3 {[%clk 0:02:12]}  c5 {[%clk 0:01:56]} 23. bxc5 {[%clk 0:02:12]}  Bxc5 {[%clk 0:01:52]} 24. d4 {[%clk 0:02:09]}  Bd6 {[%clk 0:01:48]} 25. Ra1 {[%clk 0:01:59]}  c5 {[%clk 0:01:44]} 26. dxc5 {[%clk 0:01:32]}  Nxc5 {[%clk 0:01:34]} 27. Bxc5 {[%clk 0:01:11]}  Bxc5 {[%clk 0:01:35]} 28. Qd5 {[%clk 0:01:11]}  Rd8 {[%clk 0:01:17]} 29. Ra8 {[%clk 0:01:08]}  Rxa8 {[%clk 0:01:13]} 30. Qxa8+ {[%clk 0:01:09]}  Kh7 {[%clk 0:01:12]} 31. Qc8 {[%clk 0:00:51]}  g6 {[%clk 0:01:05]} 32. Qc6 {[%clk 0:00:41]}  b4 {[%clk 0:01:03]} 33. cxb4 {[%clk 0:00:39]}  Bxb4 {[%clk 0:01:04]} 34. Qd5 {[%clk 0:00:35]}  Bd6 {[%clk 0:00:57]} 35. g3 {[%clk 0:00:34]}  Kg7 {[%clk 0:00:56]} 36. Kg2 {[%clk 0:00:34]}  Bc7 {[%clk 0:00:56]} 37. h4 {[%clk 0:00:34]}  Qd6 {[%clk 0:00:56]} 38. Qb5 {[%clk 0:00:28]}  Qe6 {[%clk 0:00:52]} 39. h5 {[%clk 0:00:24]}  g5 {[%clk 0:00:48]} 40. Nd2 {[%clk 0:00:15]}  Qb6 {[%clk 0:00:48]} 41. Qxb6 {[%clk 0:00:14]}  Bxb6 {[%clk 0:00:48]} 42. Nc4 {[%clk 0:00:14]}  Bd4 {[%clk 0:00:48]} 43. Nd6 {[%clk 0:00:15]}  Bc5 {[%clk 0:00:36]} 44. Nf5+ {[%clk 0:00:14]}  Kh7 {[%clk 0:00:36]} 45. f3 {[%clk 0:00:14]}  f6 {[%clk 0:00:33]} 46. Kf1 {[%clk 0:00:14]}  Bf8 {[%clk 0:00:33]} 47. Ke2 {[%clk 0:00:14]}  Kg8 {[%clk 0:00:33]} 48. Kd3 {[%clk 0:00:14]}  Kf7 {[%clk 0:00:34]} 49. Kc4 {[%clk 0:00:14]}  Ke6 {[%clk 0:00:35]} 50. Kb5 {[%clk 0:00:15]}  Kd7 {[%clk 0:00:35]} 51. Ne3 {[%clk 0:00:13]}  Ke6 {[%clk 0:00:34]} 52. Kc6 {[%clk 0:00:13]}  Bb4 {[%clk 0:00:26]} 53. Nf5 {[%clk 0:00:11]}  Bf8 {[%clk 0:00:26]} 54. Kc7 {[%clk 0:00:11]}  Kf7 {[%clk 0:00:17]} 55. Kd7 {[%clk 0:00:12]}  Bg7 {[%clk 0:00:17]} 56. Nxg7 {[%clk 0:00:09]}  Kxg7 {[%clk 0:00:16]} 57. Ke7 {[%clk 0:00:09]}  f5 {[%clk 0:00:11]} 58. exf5 {[%clk 0:00:09]}  g4 {[%clk 0:00:12]} 59. f6+ {[%clk 0:00:10]}  Kh7 {[%clk 0:00:12]} 60. f7 {[%clk 0:00:11]}  gxf3 {[%clk 0:00:12]} 61. f8=Q {[%clk 0:00:12]}  f2 {[%clk 0:00:11]} 62. Qxf2 {[%clk 0:00:11]} 1-0


[Site "https://www.chess.com"]

[Event "Titled Tuesday Blitz June 13 Late 2023"]
[White "Rottenwohrer Suarez, Juan"]
[Black "Demidov, Mikhail"]
[WhiteFideId "32068182"]
[BlackFideId "4197143"]
[WhiteElo "2174"]
[BlackElo "2500"]
[Result "0-1"]
[Round "1"]
[TimeControl "180+2"]
[Date "2023.06.13"]
[WhiteClock "0:00:01"]
[BlackClock "0:00:58"]
[Board "31"]

1. d4 {[%clk 0:02:58]}  g6 {[%clk 0:02:41]} 2. e4 {[%clk 0:02:48]}  Bg7 {[%clk 0:02:41]} 3. Nc3 {[%clk 0:02:48]}  a6 {[%clk 0:02:41]} 4. Nf3 {[%clk 0:02:47]}  b5 {[%clk 0:02:41]} 5. Bd3 {[%clk 0:02:41]}  Bb7 {[%clk 0:02:41]} 6. O-O {[%clk 0:02:40]}  d6 {[%clk 0:02:42]} 7. Bg5 {[%clk 0:02:24]}  h6 {[%clk 0:02:40]} 8. Be3 {[%clk 0:02:18]}  Nd7 {[%clk 0:02:40]} 9. d5 {[%clk 0:02:10]}  Ngf6 {[%clk 0:02:39]} 10. h3 {[%clk 0:02:07]}  c6 {[%clk 0:02:36]} 11. a3 {[%clk 0:01:40]}  cxd5 {[%clk 0:02:32]} 12. exd5 {[%clk 0:01:38]}  O-O {[%clk 0:02:28]} 13. Qd2 {[%clk 0:01:32]}  Nxd5 {[%clk 0:02:20]} 14. Nxd5 {[%clk 0:00:57]}  Bxd5 {[%clk 0:02:21]} 15. Be2 {[%clk 0:00:57]}  Bxf3 {[%clk 0:01:58]} 16. Bxf3 {[%clk 0:00:56]}  Rc8 {[%clk 0:01:58]} 17. Bb7 {[%clk 0:00:53]}  Rb8 {[%clk 0:01:57]} 18. Bxa6 {[%clk 0:00:46]}  Nc5 {[%clk 0:01:40]} 19. Bxc5 {[%clk 0:00:19]}  dxc5 {[%clk 0:01:41]} 20. Qxd8 {[%clk 0:00:20]}  Rfxd8 {[%clk 0:01:41]} 21. c4 {[%clk 0:00:21]}  bxc4 {[%clk 0:01:38]} 22. Bxc4 {[%clk 0:00:22]}  Rxb2 {[%clk 0:01:31]} 23. Rab1 {[%clk 0:00:18]}  Rc2 {[%clk 0:01:26]} 24. Bb5 {[%clk 0:00:17]}  Rdd2 {[%clk 0:01:21]} 25. Rbd1 {[%clk 0:00:12]}  Bd4 {[%clk 0:01:17]} 26. Rxd2 {[%clk 0:00:11]}  Rxd2 {[%clk 0:01:18]} 27. a4 {[%clk 0:00:11]}  Ra2 {[%clk 0:01:17]} 28. g3 {[%clk 0:00:10]}  e5 {[%clk 0:01:11]} 29. Kg2 {[%clk 0:00:10]}  e4 {[%clk 0:01:05]} 30. Kg1 {[%clk 0:00:03]}  Kg7 {[%clk 0:01:03]} 31. g4 {[%clk 0:00:02]}  f5 {[%clk 0:01:03]} 32. gxf5 {[%clk 0:00:03]}  gxf5 {[%clk 0:01:03]} 33. Rd1 {[%clk 0:00:01]}  Bxf2+ {[%clk 0:01:02]} 34. Kf1 {[%clk 0:00:02]}  Bd4 {[%clk 0:00:58]} 35. Rb1 {[%clk 0:00:01]} 0-1


[Site "https://www.chess.com"]

[Event "Titled Tuesday Blitz June 13 Late 2023"]
[White "Santos Flores, Alberto"]
[Black "Xiong, Jeffery"]
[WhiteFideId "3601234"]
[BlackFideId "2047640"]
[WhiteElo "2235"]
[BlackElo "2726"]
[Result "0-1"]
[Round "1"]
[TimeControl "180+2"]
[Date "2023.06.13"]
[WhiteClock "0:00:16"]
[BlackClock "0:01:54"]
[Board "33"]

1. e4 {[%clk 0:02:58]}  e6 {[%clk 0:02:59]} 2. d4 {[%clk 0:02:56]}  d5 {[%clk 0:03:00]} 3. Nc3 {[%clk 0:02:56]}  Bb4 {[%clk 0:02:59]} 4. e5 {[%clk 0:02:56]}  b6 {[%clk 0:02:59]} 5. Qg4 {[%clk 0:02:51]}  Bf8 {[%clk 0:02:59]} 6. Nf3 {[%clk 0:02:37]}  Qd7 {[%clk 0:02:34]} 7. h4 {[%clk 0:02:30]}  Ne7 {[%clk 0:02:34]} 8. Qf4 {[%clk 0:02:15]}  h6 {[%clk 0:02:29]} 9. g4 {[%clk 0:02:11]}  Ba6 {[%clk 0:02:28]} 10. Bxa6 {[%clk 0:02:05]}  Nxa6 {[%clk 0:02:29]} 11. Be3 {[%clk 0:02:05]}  c5 {[%clk 0:02:29]} 12. Ne2 {[%clk 0:01:57]}  Nb4 {[%clk 0:02:26]} 13. Kd2 {[%clk 0:01:40]}  Rc8 {[%clk 0:02:18]} 14. c3 {[%clk 0:01:40]}  Nbc6 {[%clk 0:02:17]} 15. h5 {[%clk 0:01:30]}  Na5 {[%clk 0:02:14]} 16. b3 {[%clk 0:01:25]}  Nec6 {[%clk 0:02:14]} 17. g5 {[%clk 0:01:21]}  cxd4 {[%clk 0:02:10]} 18. Nexd4 {[%clk 0:01:19]}  Nxd4 {[%clk 0:02:04]} 19. Bxd4 {[%clk 0:01:18]}  hxg5 {[%clk 0:02:05]} 20. Nxg5 {[%clk 0:01:17]}  Nc6 {[%clk 0:02:05]} 21. Qe3 {[%clk 0:01:10]}  Nxd4 {[%clk 0:01:57]} 22. cxd4 {[%clk 0:00:59]}  Bb4+ {[%clk 0:01:57]} 23. Ke2 {[%clk 0:00:59]}  Rc3 {[%clk 0:01:55]} 24. Qf4 {[%clk 0:00:16]}  Qb5+ {[%clk 0:01:54]} 0-1


[Site "https://www.chess.com"]